[Event "Fast Chess"]
[Site "ChessKid.com"]
[Date "2020.04.02"]
[Round "2"]
[White "Sasse, Gabriel"]
[Black "Halimi, Dorian"]
[Result "0-1"]
[ECO "C50"]
[WhiteElo "1176"]
[BlackElo "990"]
[PlyCount "100"]
[EventDate "2020.??.??"]
[TimeControl "600"]
[WhiteClock "0:06:01"]
[BlackClock "0:06:06"]

1. e4 {[%emt 0:00:00]} e5 {[%emt 0:00:03]} 2. Nf3 {[%emt 0:00:01]} Nc6 {
[%emt 0:00:02]} 3. Bc4 {[%emt 0:00:00]} Bc5 {[%emt 0:00:07]} 4. Nc3 {[%emt 0:
00:01]} Nf6 {[%emt 0:00:03]} 5. h3 {[%emt 0:00:00]} h6 {[%emt 0:00:04]} 6. O-O
{[%emt 0:00:01]} O-O {[%emt 0:00:03]} 7. d3 {[%emt 0:00:01]} b6 {[%emt 0:00:02]
} 8. Nb5 {[%emt 0:00:03]} Ba6 {[%emt 0:00:06]} 9. Nxe5 {[%emt 0:00:03]} Bxb5 {
[%emt 0:00:03]} 10. Bxb5 {[%emt 0:00:03]} Nxe5 {[%emt 0:00:02]} 11. d4 {
[%emt 0:00:01]} Bxd4 {[%emt 0:00:12]} 12. Qxd4 {[%emt 0:00:04]} Qe7 {[%emt 0:
00:03]} 13. Qe3 {[%emt 0:00:06]} Rad8 {[%emt 0:00:04]} 14. Qg3 {[%emt 0:00:02]}
c6 {[%emt 0:00:08]} 15. Bxh6 {[%emt 0:00:03]} g6 {[%emt 0:00:22]} 16. Bxf8 {
[%emt 0:00:03]} Qxf8 {[%emt 0:00:03]} 17. Be2 {[%emt 0:00:06]} b5 {[%emt 0:00:
03]} 18. Rad1 {[%emt 0:00:04]} Qb4 {[%emt 0:00:08]} 19. Qxe5 {[%emt 0:00:06]}
Nh7 {[%emt 0:00:09]} 20. Rd4 {[%emt 0:00:16]} Qxb2 {[%emt 0:00:04]} 21. Ra1 {
[%emt 0:00:12]} Qxa1+ {[%emt 0:00:04]} 22. Bf1 {[%emt 0:00:14]} Qxa2 {[%emt 0:
00:03]} 23. Qe7 {[%emt 0:00:04]} Rf8 {[%emt 0:00:04]} 24. Rxd7 {[%emt 0:00:06]}
Qxc2 {[%emt 0:00:05]} 25. Rd8 {[%emt 0:00:06]} Rxd8 {[%emt 0:00:08]} 26. Qxd8+
{[%emt 0:00:02]} Nf8 {[%emt 0:00:03]} 27. Bd3 {[%emt 0:00:05]} Qd1+ {[%emt 0:
00:04]} 28. Kh2 {[%emt 0:00:05]} a6 {[%emt 0:00:08]} 29. Qb6 {[%emt 0:00:16]}
Ne6 {[%emt 0:00:17]} 30. Qxc6 {[%emt 0:00:19]} Nf4 {[%emt 0:00:03]} 31. Qe8+ {
[%emt 0:00:05]} Kg7 {[%emt 0:00:02]} 32. Kg3 {[%emt 0:00:16]} Nxd3 {[%emt 0:00:
04]} 33. Qd8 {[%emt 0:00:03]} Qh1 {[%emt 0:00:05]} 34. Qxd3 {[%emt 0:00:04]} b4
{[%emt 0:00:05]} 35. Qxa6 {[%emt 0:00:04]} b3 {[%emt 0:00:03]} 36. Qa3 {
[%emt 0:00:02]} Qb1 {[%emt 0:00:05]} 37. Kf4 {[%emt 0:00:09]} b2 {[%emt 0:00:
01]} 38. Qb3 {[%emt 0:00:02]} Qc1+ {[%emt 0:00:04]} 39. Kf3 {[%emt 0:00:16]}
b1=Q {[%emt 0:00:05]} 40. Qxb1 {[%emt 0:00:02]} Qxb1 {[%emt 0:00:04]} 41. g3 {
[%emt 0:00:01]} Qh1+ {[%emt 0:00:04]} 42. Kf4 {[%emt 0:00:03]} Qxh3 {[%emt 0:
00:02]} 43. f3 {[%emt 0:00:02]} f6 {[%emt 0:00:01]} 44. g4 {[%emt 0:00:02]} g5+
{[%emt 0:00:01]} 45. Kf5 {[%emt 0:00:02]} Qxf3+ {[%emt 0:00:03]} 46. Ke6 {
[%emt 0:00:01]} Qxg4+ {[%emt 0:00:03]} 47. Kd5 {[%emt 0:00:03]} Kf7 {[%emt 0:
00:07]} 48. e5 {[%emt 0:00:03]} f5 {[%emt 0:00:03]} 49. e6+ {[%emt 0:00:02]}
Ke7 {[%emt 0:00:04]} 50. Ke5 {[%emt 0:00:02]} Qe4# {[%emt 0:00:04]
FullMagentaEclipse won by checkmate} 0-1

[Event "Fast Chess"]
[Site "ChessKid.com"]
[Date "2020.04.02"]
[Round "3"]
[White "Li, Patrick"]
[Black "Dai, Lana"]
[Result "0-1"]
[ECO "C55"]
[WhiteElo "949"]
[BlackElo "1201"]
[PlyCount "64"]
[EventDate "2020.??.??"]
[TimeControl "600"]
[WhiteClock "0:05:51"]
[BlackClock "0:05:27"]

1. e4 {[%emt 0:01:13]} e5 {[%emt 0:00:10]} 2. Nf3 {[%emt 0:00:01]} Nc6 {
[%emt 0:00:04]} 3. Nc3 {[%emt 0:00:01]} Bc5 {[%emt 0:00:05]} 4. Bc4 {[%emt 0:
00:01]} Nf6 {[%emt 0:00:03]} 5. Ng5 {[%emt 0:00:01]} O-O {[%emt 0:00:23]} 6.
Nxf7 {[%emt 0:00:02]} Rxf7 {[%emt 0:00:03]} 7. Bxf7+ {[%emt 0:00:01]} Kxf7 {
[%emt 0:00:02]} 8. O-O {[%emt 0:00:03]} Kg8 {[%emt 0:00:03]} 9. d3 {[%emt 0:00:
03]} h6 {[%emt 0:00:05]} 10. Nd5 {[%emt 0:00:01]} Nxd5 {[%emt 0:00:06]} 11.
exd5 {[%emt 0:00:01]} Nd4 {[%emt 0:00:04]} 12. Qd2 {[%emt 0:00:05]} d6 {
[%emt 0:00:13]} 13. h3 {[%emt 0:00:17]} Bf5 {[%emt 0:00:11]} 14. Qa5 {[%emt 0:
00:14]} Nxc2 {[%emt 0:00:17]} 15. Rb1 {[%emt 0:00:05]} Bxd3 {[%emt 0:00:26]}
16. Rd1 {[%emt 0:00:13]} Be2 {[%emt 0:00:05]} 17. Re1 {[%emt 0:00:03]} b6 {
[%emt 0:00:05]} 18. Rxe2 {[%emt 0:00:05]} bxa5 {[%emt 0:00:01]} 19. Rxc2 {
[%emt 0:00:03]} Rb8 {[%emt 0:00:11]} 20. Rd2 {[%emt 0:00:26]} Bb4 {[%emt 0:00:
06]} 21. Rc2 {[%emt 0:00:09]} Ba3 {[%emt 0:00:15]} 22. f3 {[%emt 0:00:13]} Bc5+
{[%emt 0:00:05]} 23. Kh2 {[%emt 0:00:14]} Qh4 {[%emt 0:00:04]} 24. Bd2 {
[%emt 0:00:18]} Bf2 {[%emt 0:00:05]} 25. Be1 {[%emt 0:00:00]} Qg3+ {[%emt 0:00:
06]} 26. Kh1 {[%emt 0:00:06]} Bxe1 {[%emt 0:00:08]} 27. Rbc1 {[%emt 0:00:06]}
Bb4 {[%emt 0:00:18]} 28. Rc6 {[%emt 0:00:02]} Bd2 {[%emt 0:00:10]} 29. Rxc7 {
[%emt 0:00:00]} Bxc1 {[%emt 0:00:04]} 30. Rxa7 {[%emt 0:00:07]} Qe1+ {[%emt 0:
00:04]} 31. Kh2 {[%emt 0:00:09]} Bf4+ {[%emt 0:00:04]} 32. g3 {[%emt 0:00:12]}
Rxb2# {[%emt 0:00:03] TopBrownCave won by checkmate} 0-1

[Event "Fast Chess"]
[Site "ChessKid.com"]
[Date "2020.04.02"]
[Round "3"]
[White "Halimi, Dorian"]
[Black "Li, Tobias"]
[Result "0-1"]
[ECO "C47"]
[WhiteElo "975"]
[BlackElo "1195"]
[PlyCount "142"]
[EventDate "2020.??.??"]
[TimeControl "600"]
[WhiteClock "0:04:02"]
[BlackClock "0:05:05"]

1. e4 {[%emt 0:00:00]} e5 {[%emt 0:00:04]} 2. Nf3 {[%emt 0:00:04]} Nc6 {
[%emt 0:00:03]} 3. Nc3 {[%emt 0:00:04]} Nf6 {[%emt 0:00:04]} 4. d3 {[%emt 0:00:
03]} Bc5 {[%emt 0:00:10]} 5. b3 {[%emt 0:00:12]} Ng4 {[%emt 0:00:07]} 6. Be3 {
[%emt 0:00:20]} Bxe3 {[%emt 0:00:09]} 7. fxe3 {[%emt 0:00:03]} Nxe3 {[%emt 0:
00:02]} 8. Qe2 {[%emt 0:00:03]} Ng4 {[%emt 0:00:04]} 9. h3 {[%emt 0:00:02]} Nf6
{[%emt 0:00:03]} 10. g4 {[%emt 0:00:02]} h6 {[%emt 0:00:15]} 11. g5 {[%emt 0:
00:09]} hxg5 {[%emt 0:00:03]} 12. Nxg5 {[%emt 0:00:04]} Nh5 {[%emt 0:00:08]}
13. Nf3 {[%emt 0:00:04]} Nf6 {[%emt 0:00:02]} 14. Rg1 {[%emt 0:00:08]} d6 {
[%emt 0:00:07]} 15. Rxg7 {[%emt 0:00:09]} Bxh3 {[%emt 0:00:04]} 16. Bxh3 {
[%emt 0:00:04]} Rxh3 {[%emt 0:00:07]} 17. Nd5 {[%emt 0:00:07]} Rh1+ {[%emt 0:
00:03]} 18. Kd2 {[%emt 0:00:06]} Rxa1 {[%emt 0:00:03]} 19. Nxf6+ {[%emt 0:00:
07]} Qxf6 {[%emt 0:00:04]} 20. Rg8+ {[%emt 0:00:03]} Ke7 {[%emt 0:00:06]} 21.
Rxa8 {[%emt 0:00:04]} Rxa2 {[%emt 0:00:12]} 22. Rc8 {[%emt 0:00:07]} Kd7 {
[%emt 0:00:06]} 23. Rg8 {[%emt 0:00:05]} Nb4 {[%emt 0:00:20]} 24. Ne1 {[%emt 0:
00:03]} Qe6 {[%emt 0:00:06]} 25. Qg2 {[%emt 0:00:09]} Qxb3 {[%emt 0:00:03]} 26.
Qg4+ {[%emt 0:00:11]} Qe6 {[%emt 0:00:09]} 27. Qxe6+ {[%emt 0:00:04]} Kxe6 {
[%emt 0:00:03]} 28. Re8+ {[%emt 0:00:01]} Kd7 {[%emt 0:00:05]} 29. Rf8 {
[%emt 0:00:02]} Ke7 {[%emt 0:00:03]} 30. Rb8 {[%emt 0:00:02]} b6 {[%emt 0:00:
06]} 31. Kc1 {[%emt 0:00:14]} Ra1+ {[%emt 0:00:04]} 32. Kd2 {[%emt 0:00:05]}
Kd7 {[%emt 0:00:26]} 33. Kc3 {[%emt 0:00:02]} Rxe1 {[%emt 0:00:09]} 34. Kxb4 {
[%emt 0:00:02]} Kc6 {[%emt 0:00:12]} 35. Rf8 {[%emt 0:00:03]} Rc1 {[%emt 0:00:
02]} 36. Kc3 {[%emt 0:00:03]} Rf1 {[%emt 0:00:05]} 37. d4 {[%emt 0:00:05]} Re1
{[%emt 0:00:07]} 38. Rxf7 {[%emt 0:00:06]} Rxe4 {[%emt 0:00:02]} 39. Kc4 {
[%emt 0:00:04]} Rxd4+ {[%emt 0:00:03]} 40. Kc3 {[%emt 0:00:02]} Kc5 {[%emt 0:
00:05]} 41. Rxc7+ {[%emt 0:00:03]} Kd5 {[%emt 0:00:05]} 42. Rxa7 {[%emt 0:00:
06]} Rc4+ {[%emt 0:00:03]} 43. Kd3 {[%emt 0:00:03]} b5 {[%emt 0:00:08]} 44. Rb7
{[%emt 0:00:02]} b4 {[%emt 0:00:18]} 45. Rb5+ {[%emt 0:00:04]} Rc5 {[%emt 0:00:
02]} 46. Rxb4 {[%emt 0:00:03]} Ke6 {[%emt 0:00:12]} 47. c4 {[%emt 0:00:06]} d5
{[%emt 0:00:06]} 48. Rb5 {[%emt 0:00:11]} Rxb5 {[%emt 0:00:04]} 49. cxb5 {
[%emt 0:00:04]} Kd6 {[%emt 0:00:02]} 50. b6 {[%emt 0:00:02]} Kc6 {[%emt 0:00:
01]} 51. Ke3 {[%emt 0:00:03]} Kxb6 {[%emt 0:00:01]} 52. Kd3 {[%emt 0:00:03]}
Kc5 {[%emt 0:00:01]} 53. Kd2 {[%emt 0:00:02]} d4 {[%emt 0:00:02]} 54. Kd3 {
[%emt 0:00:02]} Kd5 {[%emt 0:00:02]} 55. Kd2 {[%emt 0:00:02]} e4 {[%emt 0:00:
01]} 56. Ke2 {[%emt 0:00:03]} d3+ {[%emt 0:00:00]} 57. Kd2 {[%emt 0:00:02]} Kc4
{[%emt 0:00:01]} 58. Ke3 {[%emt 0:00:02]} Kc3 {[%emt 0:00:02]} 59. Kxe4 {
[%emt 0:00:07]} d2 {[%emt 0:00:03]} 60. Ke3 {[%emt 0:00:01]} d1=Q {[%emt 0:00:
04]} 61. Ke4 {[%emt 0:00:03]} Qd2 {[%emt 0:00:03]} 62. Ke5 {[%emt 0:00:02]} Kc4
{[%emt 0:00:02]} 63. Kf5 {[%emt 0:00:02]} Qe3 {[%emt 0:00:01]} 64. Kg4 {
[%emt 0:00:02]} Qf2 {[%emt 0:00:04]} 65. Kg5 {[%emt 0:00:01]} Kd5 {[%emt 0:00:
02]} 66. Kg6 {[%emt 0:00:01]} Ke5 {[%emt 0:00:04]} 67. Kg5 {[%emt 0:00:02]}
Qf5+ {[%emt 0:00:02]} 68. Kh4 {[%emt 0:00:01]} Qg6 {[%emt 0:00:02]} 69. Kh3 {
[%emt 0:00:01]} Kf4 {[%emt 0:00:01]} 70. Kh2 {[%emt 0:00:01]} Kf3 {[%emt 0:00:
03]} 71. Kh1 {[%emt 0:00:03]} Qg2# {[%emt 0:00:01] OnlyHungryKiwi won by
checkmate} 0-1

[Event "Fast Chess"]
[Site "ChessKid.com"]
[Date "2020.04.03"]
[Round "1"]
[White "Halimi, Dorian"]
[Black "Dai, Lana"]
[Result "0-1"]
[ECO "C48"]
[WhiteElo "963"]
[BlackElo "1225"]
[PlyCount "120"]
[EventDate "2020.??.??"]
[TimeControl "600"]
[WhiteClock "0:03:51"]
[BlackClock "0:05:42"]

1. e4 {[%emt 0:00:00]} e5 {[%emt 0:00:02]} 2. Nf3 {[%emt 0:00:03]} Nc6 {
[%emt 0:00:02]} 3. Nc3 {[%emt 0:00:05]} Bc5 {[%emt 0:00:03]} 4. Bb5 {[%emt 0:
00:10]} Nf6 {[%emt 0:00:03]} 5. Bxc6 {[%emt 0:00:02]} dxc6 {[%emt 0:00:03]} 6.
O-O {[%emt 0:00:07]} Bg4 {[%emt 0:00:01]} 7. h3 {[%emt 0:00:04]} Bh5 {[%emt 0:
00:03]} 8. g4 {[%emt 0:00:02]} Bg6 {[%emt 0:00:04]} 9. Nxe5 {[%emt 0:00:02]}
Bd4 {[%emt 0:00:13]} 10. Nxg6 {[%emt 0:00:04]} fxg6 {[%emt 0:00:05]} 11. d3 {
[%emt 0:00:10]} h6 {[%emt 0:00:04]} 12. h4 {[%emt 0:00:08]} h5 {[%emt 0:00:11]}
13. g5 {[%emt 0:00:02]} Ng4 {[%emt 0:00:05]} 14. Qe1 {[%emt 0:00:22]} O-O {
[%emt 0:00:19]} 15. Be3 {[%emt 0:00:06]} Bxe3 {[%emt 0:00:05]} 16. fxe3 {
[%emt 0:00:02]} Rxf1+ {[%emt 0:00:07]} 17. Qxf1 {[%emt 0:00:04]} Nxe3 {[%emt 0:
00:03]} 18. Qe2 {[%emt 0:00:05]} Ng4 {[%emt 0:00:05]} 19. Rf1 {[%emt 0:00:04]}
Qd6 {[%emt 0:00:10]} 20. Kg2 {[%emt 0:00:10]} Qh2+ {[%emt 0:00:05]} 21. Kf3 {
[%emt 0:00:04]} Qh3+ {[%emt 0:00:06]} 22. Kf4 {[%emt 0:00:04]} Qh2+ {[%emt 0:
00:11]} 23. Qxh2 {[%emt 0:00:12]} Nxh2 {[%emt 0:00:02]} 24. Rf2 {[%emt 0:00:03]
} Ng4 {[%emt 0:00:04]} 25. Kg3 {[%emt 0:00:04]} Nxf2 {[%emt 0:00:03]} 26. Kxf2
{[%emt 0:00:01]} Rf8+ {[%emt 0:00:02]} 27. Ke2 {[%emt 0:00:01]} c5 {[%emt 0:00:
04]} 28. Ke3 {[%emt 0:00:03]} c6 {[%emt 0:00:03]} 29. b3 {[%emt 0:00:02]} b5 {
[%emt 0:00:02]} 30. a4 {[%emt 0:00:04]} b4 {[%emt 0:00:04]} 31. Ne2 {[%emt 0:
00:05]} a5 {[%emt 0:00:05]} 32. e5 {[%emt 0:00:02]} Re8 {[%emt 0:00:02]} 33. d4
{[%emt 0:00:03]} cxd4+ {[%emt 0:00:06]} 34. Kxd4 {[%emt 0:00:01]} Re6 {[%emt 0:
00:16]} 35. Nf4 {[%emt 0:00:02]} Re8 {[%emt 0:00:12]} 36. Nxg6 {[%emt 0:00:04]}
Rd8+ {[%emt 0:00:05]} 37. Ke4 {[%emt 0:00:03]} c5 {[%emt 0:00:08]} 38. Kf5 {
[%emt 0:00:03]} Rd2 {[%emt 0:00:17]} 39. e6 {[%emt 0:00:01]} Rf2+ {[%emt 0:00:
01]} 40. Ke5 {[%emt 0:00:02]} Re2+ {[%emt 0:00:04]} 41. Kf5 {[%emt 0:00:02]}
Rxc2 {[%emt 0:00:10]} 42. e7 {[%emt 0:00:03]} Re2 {[%emt 0:00:01]} 43. Kf4 {
[%emt 0:00:07]} c4 {[%emt 0:00:13]} 44. bxc4 {[%emt 0:00:04]} b3 {[%emt 0:00:
02]} 45. c5 {[%emt 0:00:02]} b2 {[%emt 0:00:01]} 46. c6 {[%emt 0:00:00]} b1=Q {
[%emt 0:00:04]} 47. c7 {[%emt 0:00:02]} Qe4+ {[%emt 0:00:02]} 48. Kg3 {[%emt 0:
00:08]} Re3+ {[%emt 0:00:03]} 49. Kf2 {[%emt 0:00:05]} Qf3+ {[%emt 0:00:05]}
50. Kg1 {[%emt 0:00:02]} Re1+ {[%emt 0:00:09]} 51. Kh2 {[%emt 0:00:02]} Qf2+ {
[%emt 0:00:27]} 52. Kh3 {[%emt 0:00:05]} Qf5+ {[%emt 0:00:10]} 53. Kg3 {
[%emt 0:00:22]} Re3+ {[%emt 0:00:04]} 54. Kg2 {[%emt 0:00:03]} Qg4+ {[%emt 0:
00:11]} 55. Kf2 {[%emt 0:00:02]} Qf3+ {[%emt 0:00:03]} 56. Kg1 {[%emt 0:00:02]}
Qg3+ {[%emt 0:00:10]} 57. Kf1 {[%emt 0:00:03]} Qe1+ {[%emt 0:00:11]} 58. Kg2 {
[%emt 0:00:03]} Rg3+ {[%emt 0:00:09]} 59. Kh2 {[%emt 0:00:03]} Qf2+ {[%emt 0:
00:03]} 60. Kh1 {[%emt 0:00:03]} Rg1# {[%emt 0:00:03] TopBrownCave won by
checkmate} 0-1

[Event "Fast Chess"]
[Site "ChessKid.com"]
[Date "2020.04.03"]
[Round "1"]
[White "Sasse, Gabriel"]
[Black "Li, Patrick"]
[Result "1-0"]
[ECO "C50"]
[WhiteElo "1195"]
[BlackElo "934"]
[PlyCount "35"]
[EventDate "2020.??.??"]
[TimeControl "600"]
[WhiteClock "0:07:21"]
[BlackClock "0:08:38"]

1. e4 {[%emt 0:00:01]} e5 {[%emt 0:00:05]} 2. Nf3 {[%emt 0:00:00]} Nc6 {
[%emt 0:00:01]} 3. Bc4 {[%emt 0:00:01]} Bc5 {[%emt 0:00:04]} 4. h3 {[%emt 0:00:
04]} Nf6 {[%emt 0:00:02]} 5. Ng5 {[%emt 0:00:02]} O-O {[%emt 0:00:02]} 6. Qf3 {
[%emt 0:00:09]} h6 {[%emt 0:00:05]} 7. Ne6 {[%emt 0:00:09]} dxe6 {[%emt 0:00:
14]} 8. Qg3 {[%emt 0:00:04]} Nxe4 {[%emt 0:00:09]} 9. Qg4 {[%emt 0:00:07]} Nf6
{[%emt 0:00:02]} 10. Qg3 {[%emt 0:00:01]} Qd4 {[%emt 0:00:05]} 11. d3 {[%emt 0:
00:05]} Bd7 {[%emt 0:00:07]} 12. Bxh6 {[%emt 0:00:04]} Nh5 {[%emt 0:00:02]} 13.
Qg5 {[%emt 0:00:07]} e4 {[%emt 0:00:35]} 14. g4 {[%emt 0:00:03]} Kh7 {[%emt 0:
00:19]} 15. gxh5 {[%emt 0:00:10]} Qxf2+ {[%emt 0:00:17]} 16. Kd1 {[%emt 0:00:
08]} Qf3+ {[%emt 0:00:07]} 17. Ke1 {[%emt 0:00:00]} Qf5 {[%emt 0:00:24]} 18.
Qxg7# {[%emt 0:00:07] LimeFarActor won by checkmate} 1-0

[Event "Fast Chess"]
[Site "ChessKid.com"]
[Date "2020.04.03"]
[Round "2"]
[White "Dai, Lana"]
[Black "Sasse, Gabriel"]
[Result "0-1"]
[ECO "C50"]
[WhiteElo "1214"]
[BlackElo "1204"]
[PlyCount "112"]
[EventDate "2020.??.??"]
[TimeControl "600"]
[WhiteClock "0:05:01"]
[BlackClock "0:00:08"]

1. e4 {[%emt 0:00:00]} e5 {[%emt 0:00:01]} 2. Nf3 {[%emt 0:00:03]} Nc6 {
[%emt 0:00:00]} 3. Bc4 {[%emt 0:00:01]} Bc5 {[%emt 0:00:01]} 4. Nc3 {[%emt 0:
00:02]} Nf6 {[%emt 0:00:00]} 5. d3 {[%emt 0:00:03]} h6 {[%emt 0:00:02]} 6. O-O
{[%emt 0:00:16]} O-O {[%emt 0:00:04]} 7. Be3 {[%emt 0:00:08]} Bxe3 {[%emt 0:00:
03]} 8. fxe3 {[%emt 0:00:02]} Ne8 {[%emt 0:00:03]} 9. d4 {[%emt 0:00:07]} exd4
{[%emt 0:00:02]} 10. exd4 {[%emt 0:00:02]} Qf6 {[%emt 0:00:05]} 11. e5 {
[%emt 0:00:14]} Qg6 {[%emt 0:00:03]} 12. Bd3 {[%emt 0:00:17]} Qg4 {[%emt 0:00:
05]} 13. h3 {[%emt 0:00:21]} Qh5 {[%emt 0:00:08]} 14. d5 {[%emt 0:00:16]} d6 {
[%emt 0:00:08]} 15. exd6 {[%emt 0:00:10]} Na5 {[%emt 0:00:08]} 16. dxc7 {
[%emt 0:00:04]} Nxc7 {[%emt 0:00:01]} 17. Be4 {[%emt 0:00:29]} Bf5 {[%emt 0:00:
16]} 18. Bxf5 {[%emt 0:00:06]} Qxf5 {[%emt 0:00:03]} 19. Nh4 {[%emt 0:00:04]}
Qg5 {[%emt 0:00:07]} 20. Qe2 {[%emt 0:00:26]} Qxh4 {[%emt 0:00:13]} 21. d6 {
[%emt 0:00:07]} Rae8 {[%emt 0:00:06]} 22. Qd2 {[%emt 0:00:14]} Ne6 {[%emt 0:00:
12]} 23. d7 {[%emt 0:00:05]} Re7 {[%emt 0:00:03]} 24. d8=Q {[%emt 0:00:08]}
Nxd8 {[%emt 0:00:03]} 25. Rae1 {[%emt 0:00:18]} Rxe1 {[%emt 0:00:03]} 26. Rxe1
{[%emt 0:00:01]} Ndc6 {[%emt 0:00:05]} 27. Re4 {[%emt 0:00:42]} Qf6 {[%emt 0:
00:11]} 28. Nd5 {[%emt 0:00:18]} Qd8 {[%emt 0:00:23]} 29. c4 {[%emt 0:00:34]}
Re8 {[%emt 0:00:18]} 30. Rxe8+ {[%emt 0:00:11]} Qxe8 {[%emt 0:00:02]} 31. Nc7 {
[%emt 0:00:08]} Qe7 {[%emt 0:00:06]} 32. Nd5 {[%emt 0:00:10]} Qe5 {[%emt 0:00:
06]} 33. Qd3 {[%emt 0:00:33]} Qe1+ {[%emt 0:00:11]} 34. Kh2 {[%emt 0:00:11]}
Qe5+ {[%emt 0:00:07]} 35. Kg1 {[%emt 0:00:03]} Qxb2 {[%emt 0:00:08]} 36. Ne7+ {
[%emt 0:00:10]} Kf8 {[%emt 0:00:07]} 37. Nxc6 {[%emt 0:00:16]} Nxc6 {[%emt 0:
00:02]} 38. Qd6+ {[%emt 0:00:05]} Ke8 {[%emt 0:00:05]} 39. Qc7 {[%emt 0:00:21]}
Qxa2 {[%emt 0:00:06]} 40. Qxb7 {[%emt 0:00:04]} Qxc4 {[%emt 0:00:01]} 41. Qc8+
{[%emt 0:00:05]} Ke7 {[%emt 0:00:04]} 42. Qc7+ {[%emt 0:00:05]} Ke6 {[%emt 0:
00:02]} 43. Qc8+ {[%emt 0:00:02]} Ke5 {[%emt 0:00:02]} 44. Qc7+ {[%emt 0:00:01]
} Ke4 {[%emt 0:00:02]} 45. Qb7 {[%emt 0:00:30]} Kf4 {[%emt 0:00:06]} 46. Qc7+ {
[%emt 0:00:05]} Ke3 {[%emt 0:00:03]} 47. Qg3+ {[%emt 0:00:07]} Kd2 {[%emt 0:00:
14]} 48. Qf4+ {[%emt 0:00:10]} Qxf4 {[%emt 0:00:03]} 49. Kh1 {[%emt 0:00:24]}
a5 {[%emt 0:00:05]} 50. h4 {[%emt 0:00:06]} a4 {[%emt 0:00:01]} 51. g4 {
[%emt 0:00:04]} a3 {[%emt 0:00:08]} 52. g5 {[%emt 0:00:07]} hxg5 {[%emt 0:00:
03]} 53. hxg5 {[%emt 0:00:02]} a2 {[%emt 0:00:01]} 54. Kg2 {[%emt 0:00:05]}
a1=Q {[%emt 0:00:03]} 55. g6 {[%emt 0:00:05]} fxg6 {[%emt 0:00:04]} 56. Kh3 {
[%emt 0:00:06]} Qh1# {[%emt 0:00:02] LimeFarActor won by checkmate} 0-1

[Event "Fast Chess"]
[Site "ChessKid.com"]
[Date "2020.04.03"]
[Round "2"]
[White "Li, Patrick"]
[Black "Halimi, Dorian"]
[Result "0-1"]
[ECO "C55"]
[WhiteElo "919"]
[BlackElo "990"]
[PlyCount "48"]
[EventDate "2020.??.??"]
[TimeControl "600"]
[WhiteClock "0:08:25"]
[BlackClock "0:06:45"]

1. e4 {[%emt 0:00:00]} e5 {[%emt 0:00:03]} 2. Nf3 {[%emt 0:00:01]} Nf6 {
[%emt 0:00:03]} 3. Nc3 {[%emt 0:00:02]} Bb4 {[%emt 0:00:05]} 4. Bc4 {[%emt 0:
00:02]} Bxc3 {[%emt 0:00:03]} 5. dxc3 {[%emt 0:00:04]} Nc6 {[%emt 0:00:05]} 6.
O-O {[%emt 0:00:08]} O-O {[%emt 0:00:02]} 7. h3 {[%emt 0:00:03]} Qe7 {[%emt 0:
00:11]} 8. Re1 {[%emt 0:00:17]} b6 {[%emt 0:00:06]} 9. Be3 {[%emt 0:01:23]} Na5
{[%emt 0:00:04]} 10. Bg5 {[%emt 0:00:02]} Nxc4 {[%emt 0:00:04]} 11. Qd3 {
[%emt 0:00:08]} Nxb2 {[%emt 0:00:02]} 12. Qe3 {[%emt 0:00:10]} Ba6 {[%emt 0:00:
10]} 13. Rab1 {[%emt 0:00:04]} Nc4 {[%emt 0:00:02]} 14. Qe2 {[%emt 0:00:19]}
Qa3 {[%emt 0:00:02]} 15. Qd1 {[%emt 0:00:13]} Qxa2 {[%emt 0:00:02]} 16. Qd5 {
[%emt 0:00:02]} Nxd5 {[%emt 0:00:03]} 17. exd5 {[%emt 0:00:03]} Qxc2 {[%emt 0:
00:03]} 18. Nxe5 {[%emt 0:00:00]} Nxe5 {[%emt 0:00:02]} 19. Rec1 {[%emt 0:00:
04]} Qe2 {[%emt 0:00:03]} 20. Re1 {[%emt 0:00:03]} Qd2 {[%emt 0:00:05]} 21. Rb3
{[%emt 0:00:00]} Qxe1+ {[%emt 0:00:02]} 22. Kh2 {[%emt 0:00:05]} Nd3 {[%emt 0:
00:06]} 23. Rb2 {[%emt 0:00:03]} Nxf2 {[%emt 0:00:04]} 24. g3 {[%emt 0:00:00]}
Qh1# {[%emt 0:00:04] FullMagentaEclipse won by checkmate} 0-1